[Event "French-ch U12-U14 2024"]
[Site "Agen"]
[Date "2024.04.16"]
[Round "4.16"]
[White "Auribault, Louis"]
[Black "Plaidit, Hugo"]
[Result "1-0"]
[ECO "B22"]
[WhiteElo "2137"]
[BlackElo "1981"]
[Annotator "TA"]
[PlyCount "157"]
[EventDate "2024.04.14"]
[EventType "swiss"]
[EventCountry "FRA"]
[SourceTitle "playchess.com"]
[Source "ChessBase"]
[SourceQuality "1"]
[TimeControl "5400+30"]

{[%evp 19,157,25,37,0,13,6,14,14,8,14,10,10,9,9,11,10,19,17,29,8,18,11,32,33,30,29,45,6,11,0,12,19,12,20,31,31,25,25,58,0,6,6,26,0,0,0,0,-24,0,0,0,-15,0,0,0,0,25,25,25,0,0,0,0,0,0,0,0,0,0,0,10,0,63,0,0,0,0,0,0,0,10,10,24,6,8,0,16,0,12,9,13,0,17,0,17,17,24,11,18,0,657,624,623,599,927,927,900,890,1454,1464,1439,1408,1434,1435,1278,1326,1375,1370,1246,1064,29976,1277,2831,1626,29974,29975,29975,29976,29976,29977,29977,29978,29980,29981,29981,29982,29985,29986,29986,29987]} 1. e4 {[%emt 0:00:06]} c5 {[%emt 0:00:13]} 2. c3 {[%emt 0:02:17]} d5 {[%emt 0:00:35]} 3. exd5 {[%emt 0:00:05]} Qxd5 {[%emt 0:00:03]} 4. d4 {[%emt 0:00:29]} Nc6 {[%emt 0:00:14]} 5. Nf3 {[%emt 0:00:06]} Bf5 {[%emt 0:01:01]} 6. dxc5 {[%emt 0:04:23]} Qxc5 {[%emt 0:11:10]} 7. Be3 {[%emt 0:01:05]} Qa5 {[%emt 0:00:37]} 8. Bc4 {[%emt 0:04:02]} e6 {[%emt 0:13:32]} 9. O-O {[%emt 0:01:39]} Nf6 {[%emt 0:01:26]} 10. Qb3 {[%emt 0:04:03]} O-O-O {[%emt 0:02:31]} 11. Nd4 {[%emt 0:04:50]} (11. Bb5 $5) 11... Nxd4 {[%emt 0:05:00]} (11... Ng4 $5 12. Nxc6 bxc6 $11) 12. cxd4 {[%emt 0:01:10]} Bxb1 {[%emt 0:02:25]} 13. Raxb1 {[%emt 0:03:23]} Bd6 {[%emt 0:00:32]} 14. Rbc1 {[%emt 0:01:34]} Kb8 {[%emt 0:00:50]} 15. Be2 {[%emt 0:00:45]} Nd5 {[%emt 0:02:27]} 16. Bf3 {[%emt 0:00:24]} Rc8 {[%emt 0:02:13]} 17. Rc3 {[%emt 0:05:17]} Rc7 {[%emt 0:10:37]} 18. Rxc7 {[%emt 0:06:58]} Qxc7 {[%emt 0:01:02]} 19. g3 {[%emt 0:10:27]} Qa5 {[%emt 0:04:42]} 20. a3 {[%emt 0:05:51]} h5 {[%emt 0:04:55]} 21. h4 {[%emt 0:03:49]} g6 {[%emt 0:02:12]} 22. Bg5 {[%emt 0:01:08]} Rc8 {[%emt 0:02:02]} 23. Kg2 {[%emt 0:00:37]} a6 {[%emt 0:07:01]} 24. Rd1 {[%emt 0:02:52]} Qb5 {[%emt 0:02:18]} 25. Qxb5 {[%emt 0:05:07]} axb5 {[%emt 0:00:01]} 26. Rd3 {[%emt 0:00:35]} b4 {[%emt 0:04:12]} 27. Bxd5 {[%emt 0:04:17]} exd5 {[%emt 0:00:03]} 28. axb4 {[%emt 0:00:06]} Rc4 {[%emt 0:01:44]} 29. Bd2 {[%emt 0:02:14]} ({Better is} 29. Rf3 $14) 29... b5 {[%emt 0:04:34]} 30. Kf3 {[%emt 0:03:11]} Kc8 {[%emt 0:00:52]} 31. g4 {[%emt 0:07:55]} Kd7 {[%emt 0:01:42]} 32. gxh5 {[%emt 0:00:33]} gxh5 {[%emt 0:00:01]} 33. Ke2 {[%emt 0:00:38]} Be7 {[%emt 0:01:14]} (33... Bxb4 $2 34. Bxb4 Rc2+ (34... Rxb4 $2 {perishes.} 35. b3 $18) 35. Rd2 $18) 34. Bc3 {[%emt 0:02:45]} Rc6 {[%emt 0:04:05]} 35. Rd1 {[%emt 0:02:41]} Bxh4 {[%emt 0:01:32]} 36. Rh1 {[%emt 0:00:57]} Re6+ {[%emt 0:00:05]} 37. Kf1 {[%emt 0:00:49]} Bf6 {[%emt 0:03:35]} 38. Rxh5 {[%emt 0:00:09]} Kd6 {[%emt 0:00:27]} 39. Rh7 {[%emt 0:00:45]} Ke7 {[%emt 0:00:21]} 40. f3 {[%emt 0:00:26]} Re3 {[%emt 0:01:54]} 41. Kf2 {[%emt 0:00:01]} Re6 $1 {[%emt 0:00:01]} 42. Rh5 {[%emt 0:00:36]} Kd6 {[%emt 0:00:14]} 43. Kg3 {[%emt 0:03:06]} Re3 {[%emt 0:01:27]} 44. Rh6 {[%emt 0:01:45]} Re6 {[%emt 0:00:20]} 45. Rh1 {[%emt 0:00:21]} Kc6 {[%emt 0:01:12]} (45... Re2 $11) 46. Kf4 {[%emt 0:00:43]} (46. Rh7 $1 $14) 46... Be7 $11 {[%emt 0:00:31]} 47. Kg3 {[%emt 0:00:39]} Bd6+ {[%emt 0:00:12]} 48. Kf2 {[%emt 0:00:06]} Rf6 {[%emt 0:01:42]} 49. Rh8 {[%emt 0:01:55]} Rf5 {[%emt 0:00:21]} 50. Bd2 {[%emt 0:00:39]} Rf6 {[%emt 0:00:36]} 51. Rh7 {[%emt 0:00:41]} Kd7 {[%emt 0:00:25]} 52. Rh5 {[%emt 0:00:53]} Kc6 {[%emt 0:03:29]} 53. Rh8 {[%emt 0:00:37]} Rf5 {[%emt 0:00:00]} 54. Rc8+ {[%emt 0:00:48]} Kd7 {[%emt 0:00:00]} 55. Rc1 {[%emt 0:00:28]} Rf6 {[%emt 0:00:00]} 56. Ke2 {[%emt 0:00:54]} Rf5 {[%emt 0:00:00]} 57. Rh1 {[%emt 0:00:28]} Kc6 {[%emt 0:00:00]} 58. f4 {[%emt 0:00:36]} Rf6 {[%emt 0:00:00]} (58... Bxf4 $2 {loses.} 59. Rf1 $18) 59. Kd3 {[%emt 0:01:15]} Bxf4 $2 {[%emt 0:00:00][%mdl 8192]} (59... Kd7 $11) 60. Rf1 $18 {[%emt 0:00:05]} Bg5 {[%emt 0:00:04]} 61. Rc1+ {[%emt 0:00:08]} Kb7 {[%emt 0:01:05]} 62. Bxg5 {[%emt 0:00:05]} Rf3+ {[%emt 0:00:10]} 63. Be3 {[%emt 0:00:14]} Kb6 {[%emt 0:00:44]} 64. Ke2 {[%emt 0:00:33]} Rh3 {[%emt 0:00:16]} 65. Rf1 {[%emt 0:00:05]} Rh2+ {[%emt 0:01:54]} 66. Rf2 {[%emt 0:00:11]} Rh7 {[%emt 0:01:02]} 67. Rf6+ {[%emt 0:00:05]} Kc7 {[%emt 0:00:12]} 68. Bf4+ {[%emt 0:00:04]} Kb7 {[%emt 0:00:46]} 69. Rd6 {[%emt 0:00:13]} Rh5 {[%emt 0:00:04]} 70. Rd7+ {[%emt 0:00:04]} (70. Rh6 $142 Rxh6 71. Bxh6 Kc8 72. Kf3 Kd7 73. Kf4 Ke6 74. Kg5 Ke7 75. Kf5) 70... Kc6 {[%emt 0:00:03]} 71. Rxf7 {[%emt 0:00:07]} Kb6 {[%emt 0:00:31]} 72. Rf6+ {[%emt 0:00:15]} Kb7 {[%emt 0:00:02]} 73. Rh6 {[%emt 0:00:07]} Rf5 {[%emt 0:00:06]} 74. Kf3 {[%emt 0:00:05]} Rf7 {[%emt 0:00:33]} 75. Rd6 {[%emt 0:00:08]} Rf5 {[%emt 0:00:18]} 76. Kg4 {[%emt 0:00:04]} Rf7 {[%emt 0:00:02]} 77. Rxd5 {[%emt 0:00:06]} Kc6 {[%emt 0:00:09]} 78. Rc5+ {[%emt 0:00:07]} Kb6 {[%emt 0:00:04]} 79. d5 {[%emt 0:00:06]} 1-0

[Event "French-ch U12-U14 2024"]
[Site "Agen"]
[Date "2024.04.16"]
[Round "4.18"]
[White "Charlier, Antoine"]
[Black "Bornhofen, Valentin"]
[Result "1-0"]
[ECO "E48"]
[WhiteElo "2053"]
[BlackElo "1920"]
[Annotator "NA RC"]
[PlyCount "55"]
[EventDate "2024.04.14"]
[EventType "swiss"]
[EventCountry "FRA"]
[SourceTitle "playchess.com"]
[Source "ChessBase"]
[SourceQuality "1"]
[TimeControl "5400+30"]

1. d4 {[%emt 0:00:05]} Nf6 {[%emt 0:00:07]} 2. c4 {[%emt 0:00:30]} e6 {[%emt 0:00:06]} 3. Nc3 {[%emt 0:00:49]} Bb4 {[%emt 0:00:10]} 4. e3 {[%emt 0:01:07]} c5 {[%emt 0:00:10]} 5. Bd3 {[%emt 0:02:01]} Nc6 {[%emt 0:00:17]} 6. Nge2 {[%emt 0:01:30]} cxd4 {[%emt 0:00:31]} 7. exd4 {[%emt 0:01:53]} d5 {[%emt 0:00:13]} 8. O-O {[%emt 0:03:28]} dxc4 {[%emt 0:01:30]} 9. Bxc4 {[%emt 0:00:38]} O-O {[%emt 0:00:36]} 10. Bg5 {[%emt 0:08:39]} Be7 {[%emt 0:04:10]} 11. a3 {[%emt 0:08:20]} a6 {[%emt 0:03:10]} 12. Bd3 {[%emt 0:05:12]} b5 {[%emt 0:05:51]} 13. Bc2 {[%emt 0:04:45]} Bb7 {[%emt 0:04:34]} 14. Qd3 {[%emt 0:11:08]} g6 {[%emt 0:01:32]} 15. b4 {[%emt 0:05:30]} Nd5 {[%emt 0:06:36]} 16. Bxe7 {[%emt 0:03:14]} Ndxe7 {[%emt 0:01:00]} 17. Ne4 {[%emt 0:01:00]} Nf5 {[%emt 0:02:33]} 18. Nc5 {[%emt 0:02:59]} Qc7 {[%emt 0:04:12]} 19. Rfd1 {[%emt 0:09:28]} Rfd8 {[%emt 0:03:34]} 20. Qc3 {[%emt 0:01:40]} Nce7 {[%emt 0:01:19]} 21. Bxf5 {[%emt 0:03:42]} Nxf5 {[%emt 0:01:08]} 22. Ng3 {[%emt 0:03:27]} Ne7 {[%emt 0:20:49]} 23. Qe3 {[%emt 0:01:37]} Nd5 {[%emt 0:16:01]} 24. Qh6 {[%emt 0:00:38]} Nf6 {[%emt 0:01:57]} 25. Qg5 {[%emt 0:01:44]} Kg7 {[%emt 0:01:11]} 26. Qe5 {[%emt 0:02:03]} Qe7 {[%emt 0:01:05]} 27. Qg5 {[%emt 0:02:41]} Rd5 {[%emt 0:01:47]} 28. Nh5+ {[%emt 0:00:46]} 1-0

[Event "French-ch U12-U14 2024"]
[Site "Agen"]
[Date "2024.04.16"]
[Round "4.19"]
[White "Pon Le Brun, Gregoire"]
[Black "Bonelli Maestracci, Pierre Joseph"]
[Result "1-0"]
[ECO "B31"]
[WhiteElo "1900"]
[BlackElo "2044"]
[Annotator "NA RC"]
[PlyCount "83"]
[EventDate "2024.04.14"]
[EventType "swiss"]
[EventCountry "FRA"]
[SourceTitle "playchess.com"]
[Source "ChessBase"]
[SourceQuality "1"]
[TimeControl "5400+30"]

1. e4 {[%emt 0:00:02]} c5 {[%emt 0:00:05]} 2. Nf3 {[%emt 0:00:09]} Nc6 {[%emt 0:00:05]} 3. Bb5 {[%emt 0:00:15]} Nf6 {[%emt 0:00:52]} 4. Nc3 {[%emt 0:00:19]} g6 {[%emt 0:01:16]} 5. O-O {[%emt 0:01:14]} Bg7 {[%emt 0:01:07]} 6. Re1 {[%emt 0:03:24]} O-O {[%emt 0:02:12]} 7. h3 {[%emt 0:03:44]} d5 {[%emt 0:12:20]} 8. exd5 {[%emt 0:09:27]} Nxd5 {[%emt 0:00:04]} 9. Nxd5 {[%emt 0:04:36]} Qxd5 {[%emt 0:00:07]} 10. Qe2 {[%emt 0:05:27]} a6 {[%emt 0:12:02]} 11. Bxc6 {[%emt 0:05:48]} Qxc6 {[%emt 0:00:09]} 12. Ne5 {[%emt 0:01:56]} Qc7 {[%emt 0:06:04]} 13. b3 {[%emt 0:03:56]} b5 {[%emt 0:05:42]} 14. Bb2 {[%emt 0:01:39]} Bf5 {[%emt 0:05:11]} 15. d3 {[%emt 0:02:00]} Rfd8 {[%emt 0:03:04]} 16. a4 {[%emt 0:11:16]} Rab8 {[%emt 0:06:02]} 17. axb5 {[%emt 0:07:43]} axb5 {[%emt 0:00:13]} 18. Ra6 {[%emt 0:00:52]} Rd6 {[%emt 0:04:44]} 19. Rea1 {[%emt 0:03:22]} Rxa6 {[%emt 0:02:06]} 20. Rxa6 {[%emt 0:01:08]} Be6 {[%emt 0:06:10]} 21. Rc6 {[%emt 0:05:59]} Qa7 {[%emt 0:00:33]} 22. Rxe6 {[%emt 0:02:41]} fxe6 {[%emt 0:09:33]} 23. Nc6 {[%emt 0:00:41]} Qd7 {[%emt 0:00:34]} 24. Nxb8 {[%emt 0:00:26]} Qd6 {[%emt 0:00:04]} 25. Bxg7 {[%emt 0:01:29]} Kxg7 {[%emt 0:00:01]} 26. d4 {[%emt 0:07:34]} Qxb8 {[%emt 0:01:51]} 27. dxc5 {[%emt 0:00:24]} Qf4 {[%emt 0:04:43]} 28. Qe3 {[%emt 0:05:09]} Qc7 {[%emt 0:01:46]} 29. b4 {[%emt 0:01:13]} e5 {[%emt 0:04:08]} 30. Qe2 {[%emt 0:01:23]} Qb8 {[%emt 0:00:32]} 31. c4 {[%emt 0:00:19]} e4 {[%emt 0:01:57]} 32. Qxe4 {[%emt 0:01:14]} bxc4 {[%emt 0:00:10]} 33. Qxe7+ {[%emt 0:00:35]} Kg8 {[%emt 0:00:13]} 34. Qe6+ {[%emt 0:00:07]} Kg7 {[%emt 0:00:09]} 35. Qxc4 {[%emt 0:00:19]} Qe5 {[%emt 0:00:03]} 36. g3 {[%emt 0:01:26]} Qa1+ {[%emt 0:00:08]} 37. Kg2 {[%emt 0:00:15]} Qa8+ {[%emt 0:00:04]} 38. c6 {[%emt 0:00:09]} Qb8 {[%emt 0:00:24]} 39. c7 {[%emt 0:00:22]} Qa8+ {[%emt 0:00:13]} 40. Kh2 {[%emt 0:00:09]} Qa7 {[%emt 0:00:08]} 41. Qc5 {[%emt 0:00:13]} Qxc5 {[%emt 0:00:52]} 42. bxc5 {[%emt 0:00:08]} 1-0

[Event "French-ch U12-U14 2024"]
[Site "Agen"]
[Date "2024.04.16"]
[Round "4.20"]
[White "To, Chu"]
[Black "Tureshbayev, Anuar"]
[Result "0-1"]
[ECO "B52"]
[WhiteElo "1885"]
[BlackElo "2025"]
[Annotator "NA RC"]
[PlyCount "112"]
[EventDate "2024.04.14"]
[EventType "swiss"]
[EventCountry "FRA"]
[SourceTitle "playchess.com"]
[Source "ChessBase"]
[SourceQuality "1"]
[TimeControl "5400+30"]

1. e4 {[%emt 0:00:04]} c5 {[%emt 0:00:25]} 2. Nf3 {[%emt 0:00:12]} d6 {[%emt 0:00:04]} 3. Bb5+ {[%emt 0:00:13]} Bd7 {[%emt 0:00:04]} 4. Bxd7+ {[%emt 0:00:10]} Qxd7 {[%emt 0:00:04]} 5. O-O {[%emt 0:00:33]} Nc6 {[%emt 0:00:12]} 6. c3 {[%emt 0:00:25]} Nf6 {[%emt 0:01:16]} 7. Re1 {[%emt 0:00:18]} e6 {[%emt 0:00:59]} 8. d4 {[%emt 0:00:31]} cxd4 {[%emt 0:00:44]} 9. cxd4 {[%emt 0:00:07]} d5 {[%emt 0:00:05]} 10. e5 {[%emt 0:00:21]} Ne4 {[%emt 0:00:11]} 11. a3 {[%emt 0:00:16]} Be7 {[%emt 0:00:41]} 12. Nbd2 {[%emt 0:00:39]} Nxd2 {[%emt 0:02:33]} 13. Bxd2 {[%emt 0:00:08]} O-O {[%emt 0:00:14]} 14. Rc1 {[%emt 0:01:09]} Kh8 {[%emt 0:03:57]} 15. Rc3 {[%emt 0:06:30]} f6 {[%emt 0:03:45]} 16. exf6 {[%emt 0:10:20]} Bxf6 {[%emt 0:00:16]} 17. Ne5 {[%emt 0:02:30]} Bxe5 {[%emt 0:02:29]} 18. dxe5 {[%emt 0:00:10]} Rac8 {[%emt 0:02:12]} 19. Qh5 {[%emt 0:13:36]} Nd4 {[%emt 0:18:47]} 20. Rh3 {[%emt 0:07:54]} g6 {[%emt 0:00:21]} 21. Qg4 {[%emt 0:18:48]} Rc4 {[%emt 0:05:38]} 22. Qg3 {[%emt 0:05:44]} Qf7 {[%emt 0:06:52]} 23. Bg5 {[%emt 0:03:47]} Qf5 {[%emt 0:01:01]} 24. Kh1 {[%emt 0:04:42]} Ne2 {[%emt 0:02:34]} 25. Qf3 {[%emt 0:08:49]} Qxf3 {[%emt 0:00:08]} 26. Rxf3 {[%emt 0:00:31]} Rxf3 {[%emt 0:00:14]} 27. gxf3 {[%emt 0:00:09]} Nd4 {[%emt 0:02:19]} 28. Kg2 {[%emt 0:01:09]} Nf5 {[%emt 0:01:41]} 29. Rc1 {[%emt 0:02:32]} Rxc1 {[%emt 0:00:16]} 30. Bxc1 {[%emt 0:00:02]} Kg7 {[%emt 0:00:21]} 31. f4 {[%emt 0:01:27]} Kf7 {[%emt 0:00:13]} 32. Kf3 {[%emt 0:01:03]} h5 {[%emt 0:00:04]} 33. Be3 {[%emt 0:01:10]} a6 {[%emt 0:00:21]} 34. Bc5 {[%emt 0:03:29]} Ke8 {[%emt 0:00:09]} 35. Ke2 {[%emt 0:00:57]} Kd7 {[%emt 0:00:05]} 36. f3 {[%emt 0:00:29]} Kc6 {[%emt 0:01:23]} 37. Bf2 {[%emt 0:00:38]} d4 {[%emt 0:00:55]} 38. Kd3 {[%emt 0:01:02]} Kd5 {[%emt 0:00:14]} 39. b3 {[%emt 0:01:52]} b6 {[%emt 0:00:41]} 40. h3 {[%emt 0:01:36]} b5 {[%emt 0:00:38]} 41. Be1 {[%emt 0:02:58]} Ne3 {[%emt 0:01:03]} 42. Bf2 {[%emt 0:01:09]} Ng2 {[%emt 0:00:22]} 43. Bg3 {[%emt 0:01:10]} a5 {[%emt 0:00:32]} 44. h4 {[%emt 0:00:32]} a4 {[%emt 0:00:23]} 45. b4 {[%emt 0:00:06]} Ne3 {[%emt 0:02:54]} 46. Bf2 {[%emt 0:00:16]} Nc4 {[%emt 0:01:16]} 47. Bxd4 {[%emt 0:00:02]} Nxa3 {[%emt 0:00:06]} 48. Bb2 {[%emt 0:01:39]} Nc4 {[%emt 0:00:09]} 49. Bd4 {[%emt 0:00:31]} Nd2 {[%emt 0:00:38]} 50. Be3 {[%emt 0:00:33]} Nxf3 {[%emt 0:00:14]} 51. Bf2 {[%emt 0:00:01]} a3 {[%emt 0:01:09]} 52. Kc3 {[%emt 0:00:08]} Ke4 {[%emt 0:00:54]} 53. Bg3 {[%emt 0:00:07]} Nd4 {[%emt 0:01:07]} 54. Bf2 {[%emt 0:00:13]} Ne2+ {[%emt 0:00:12]} 55. Kb3 {[%emt 0:00:06]} Nxf4 {[%emt 0:00:11]} 56. Kxa3 {[%emt 0:00:06]} Nd3 {[%emt 0:00:15]} 0-1

[Event "French-ch U12-U14 2024"]
[Site "Agen"]
[Date "2024.04.17"]
[Round "5.2"]
[White "Benhadid, Jeilynn"]
[Black "Manouvel, Maelys"]
[Result "1-0"]
[ECO "E97"]
[WhiteElo "1844"]
[BlackElo "1541"]
[Annotator "NA RC COMBH"]
[PlyCount "149"]
[EventDate "2024.04.14"]
[EventType "swiss"]
[EventCountry "FRA"]
[SourceTitle "playchess.com"]
[Source "ChessBase"]
[SourceQuality "1"]
[TimeControl "5400+30"]

1. d4 {[%emt 0:00:11]} Nf6 {[%emt 0:00:14]} 2. c4 {[%emt 1:31:19]} g6 {[%emt 0:00:09]} 3. Nc3 {[%emt 0:00:00]} Bg7 {[%emt 0:00:24]} 4. e4 {[%emt 0:00:00]} d6 {[%emt 0:00:43]} 5. Nf3 {[%emt 0:00:00]} O-O {[%emt 0:00:42]} 6. Be2 {[%emt 0:00:00]} e5 {[%emt 0:00:29]} 7. O-O {[%emt 0:00:00]} Nc6 {[%emt 0:00:22]} 8. d5 {[%emt 0:00:00]} Ne7 {[%emt 0:00:51]} 9. Nd2 {[%emt 0:00:00]} Ne8 {[%emt 0:01:09]} 10. b4 {[%emt 0:00:00]} f5 {[%emt 0:00:26]} 11. a4 {[%emt 0:00:00]} Nf6 {[%emt 0:01:45]} 12. f3 {[%emt 0:00:00]} f4 {[%emt 0:00:44]} 13. Ba3 {[%emt 0:00:00]} g5 {[%emt 0:01:44]} 14. c5 {[%emt 0:00:00]} h5 {[%emt 0:05:58]} 15. Nc4 {[%emt 0:00:00]} g4 {[%emt 0:06:25]} 16. b5 {[%emt 0:00:00]} g3 {[%emt 0:13:38]} 17. cxd6 {[%emt 0:00:00]} cxd6 {[%emt 0:01:53]} 18. Nxd6 {[%emt 0:00:00]} h4 {[%emt 0:04:50]} 19. Nxc8 {[%emt 0:00:00]} Rxc8 {[%emt 0:01:05]} 20. Qb3 {[%emt 0:00:00]} Qe8 {[%emt 0:13:16]} 21. h3 {[%emt 0:00:00]} Kh8 {[%emt 0:06:31]} 22. Rac1 {[%emt 0:00:00]} Qf7 {[%emt 0:08:56]} 23. Qb2 {[%emt 0:00:00]} Rfd8 {[%emt 0:04:12]} 24. Rfd1 {[%emt 0:00:00]} Bf8 {[%emt 0:02:22]} 25. Na2 {[%emt 0:00:00]} Ng6 {[%emt 0:24:12]} 26. Nb4 {[%emt 0:00:00]} Qe7 {[%emt 0:00:00]} 27. Nc2 {[%emt 0:00:00]} Qc7 {[%emt 0:00:00]} 28. Bxf8 {[%emt 0:00:00]} Nxf8 {[%emt 0:00:00]} 29. Nb4 {[%emt 0:00:00]} Qb6+ {[%emt 0:00:00]} 30. Kh1 {[%emt 0:00:00]} Ng6 {[%emt 0:00:00]} 31. Nd3 {[%emt 0:00:00]} Qd6 {[%emt 0:00:00]} 32. Rd2 {[%emt 0:00:00]} Nd7 {[%emt 0:00:00]} 33. Rdc2 {[%emt 0:00:00]} Qf8 {[%emt 0:00:00]} 34. Rc7 {[%emt 0:00:00]} Rxc7 {[%emt 0:01:00]} 35. Rxc7 {[%emt 0:00:00]} Qd6 {[%emt 0:01:10]} 36. Rxb7 {[%emt 0:00:38]} Nc5 {[%emt 0:00:06]} 37. Rxa7 {[%emt 0:04:43]} Nxd3 {[%emt 0:00:09]} 38. Bxd3 {[%emt 0:00:16]} Qc5 {[%emt 0:00:11]} 39. Ra6 {[%emt 0:00:56]} Rc8 {[%emt 0:00:24]} 40. Rc6 {[%emt 0:00:40]} Rxc6 {[%emt 0:00:41]} 41. bxc6 {[%emt 0:00:31]} Kg7 {[%emt 0:00:37]} 42. Qc2 {[%emt 0:01:18]} Qb4 {[%emt 0:00:49]} 43. Qc4 {[%emt 0:01:10]} Qe1+ {[%emt 0:00:56]} 44. Bf1 {[%emt 0:00:05]} Ne7 {[%emt 0:00:20]} 45. Qb5 {[%emt 0:02:42]} Nc8 {[%emt 0:03:37]} 46. a5 {[%emt 0:01:13]} Qa1 {[%emt 0:00:00]} 47. c7 {[%emt 0:02:45]} Qc1 {[%emt 0:00:00]} 48. Qc4 {[%emt 0:00:47]} Qa1 {[%emt 0:00:00]} 49. Kg1 {[%emt 0:01:57]} Qxa5 {[%emt 0:00:00]} 50. Qc1 {[%emt 0:01:21]} Qb6+ {[%emt 0:00:00]} 51. Kh1 {[%emt 0:00:16]} Qf2 {[%emt 0:00:01]} 52. Ba6 {[%emt 0:00:33]} Qe3 {[%emt 0:00:55]} 53. Qxe3 {[%emt 0:00:54]} fxe3 {[%emt 0:03:04]} 54. Kg1 {[%emt 0:00:08]} Nd6 {[%emt 0:00:00]} 55. Kf1 {[%emt 0:00:11]} Kf7 {[%emt 0:00:00]} 56. c8=Q {[%emt 0:03:56]} Nxc8 {[%emt 0:01:30]} 57. Bxc8 {[%emt 0:00:00]} Ke7 {[%emt 0:00:00]} 58. Be6 {[%emt 0:00:00]} Kd6 {[%emt 0:00:00]} 59. Ke2 {[%emt 0:00:00]} Kc5 {[%emt 0:00:00]} 60. Kxe3 {[%emt 0:00:00]} Kd6 {[%emt 0:00:00]} 61. f4 {[%emt 0:00:00]} exf4+ {[%emt 0:00:00]} 62. Kxf4 {[%emt 0:00:00]} Ke7 {[%emt 0:00:00]} 63. Ke5 {[%emt 0:00:00]} Kd8 {[%emt 0:00:00]} 64. Bg4 {[%emt 0:00:00]} Ke7 {[%emt 0:00:00]} 65. d6+ {[%emt 0:00:00]} Kd8 {[%emt 0:00:00]} 66. Ke6 {[%emt 0:00:00]} Ke8 {[%emt 0:00:00]} 67. d7+ {[%emt 0:00:00]} Kd8 {[%emt 0:00:00]} 68. Bf3 {[%emt 0:00:00]} Kc7 {[%emt 0:00:00]} 69. Ke7 {[%emt 0:00:00]} Kb6 {[%emt 0:00:00]} 70. d8=Q+ {[%emt 0:00:00]} Kb5 {[%emt 0:00:00]} 71. Qc7 {[%emt 0:00:00]} Ka4 {[%emt 0:00:00]} 72. Qb6 {[%emt 0:00:00]} Ka3 {[%emt 0:00:00]} 73. Bd1 {[%emt 0:00:11]} Ka2 {[%emt 0:00:00]} 74. Bc2 {[%emt 0:00:08]} Ka1 {[%emt 0:00:00]} 75. Qb1# {[%emt 0:00:04]} 1-0

[Event "French-ch U12-U14 2024"]
[Site "Agen"]
[Date "2024.04.17"]
[Round "5.3"]
[White "Le Floch, Alexia"]
[Black "Gurevich, Michele"]
[Result "1-0"]
[ECO "D31"]
[WhiteElo "1641"]
[BlackElo "1625"]
[Annotator "NA RC COMBH"]
[PlyCount "61"]
[EventDate "2024.04.14"]
[EventType "swiss"]
[EventCountry "FRA"]
[SourceTitle "playchess.com"]
[Source "ChessBase"]
[SourceQuality "1"]
[TimeControl "5400+30"]

1. d4 {[%emt 0:00:01]} d5 {[%emt 0:00:04]} 2. c4 {[%emt 0:00:08]} e6 {[%emt 0:00:05]} 3. Nc3 {[%emt 0:00:07]} c6 {[%emt 0:00:02]} 4. Nf3 {[%emt 0:00:31]} dxc4 {[%emt 0:00:15]} 5. e4 {[%emt 0:00:21]} b5 {[%emt 0:00:22]} 6. a4 {[%emt 0:02:16]} Bb4 {[%emt 0:00:07]} 7. Bd2 {[%emt 0:02:13]} a5 {[%emt 1:33:05]} 8. axb5 {[%emt 0:01:17]} Bxc3 {[%emt 0:00:00]} 9. Bxc3 {[%emt 0:01:08]} cxb5 {[%emt 0:00:00]} 10. b3 {[%emt 0:01:26]} b4 {[%emt 0:00:00]} 11. Bxb4 {[%emt 0:07:43]} Qb6 {[%emt 0:00:00]} 12. Bc5 {[%emt 0:00:16]} Qxb3 {[%emt 0:00:00]} 13. Qxb3 {[%emt 0:06:12]} cxb3 {[%emt 0:00:00]} 14. Bc4 {[%emt 0:05:47]} Bb7 {[%emt 0:00:00]} 15. Nd2 {[%emt 0:02:56]} a4 {[%emt 0:00:00]} 16. Bb5+ {[%emt 0:00:17]} Nd7 {[%emt 0:00:00]} 17. Rxa4 {[%emt 0:01:06]} Rxa4 {[%emt 0:00:00]} 18. Bxa4 {[%emt 0:00:07]} Ngf6 {[%emt 0:00:00]} 19. f3 {[%emt 0:01:23]} Kd8 {[%emt 0:00:00]} 20. Nxb3 {[%emt 0:02:16]} Nxc5 {[%emt 0:00:00]} 21. Nxc5 {[%emt 0:01:37]} Kc7 {[%emt 0:00:00]} 22. Kf2 {[%emt 0:00:11]} Bc6 {[%emt 0:00:00]} 23. Nxe6+ {[%emt 0:05:23]} fxe6 {[%emt 0:00:00]} 24. Rc1 {[%emt 0:00:07]} Ra8 {[%emt 0:00:00]} 25. Rxc6+ {[%emt 0:04:35]} Kb7 {[%emt 0:00:00]} 26. Rc4 {[%emt 0:00:08]} Kb6 {[%emt 0:00:00]} 27. Bb3 {[%emt 0:01:37]} Re8 {[%emt 0:00:00]} 28. Rb4+ {[%emt 0:01:01]} Kc7 {[%emt 0:00:00]} 29. Rb5 {[%emt 0:00:43]} h6 {[%emt 0:00:00]} 30. Rc5+ {[%emt 0:01:08]} Kb7 {[%emt 0:00:00]} 31. Re5 {[%emt 0:00:30]} 1-0